[Event "Live Chess"]
[Site "Chess.com"]
[Date "2024.06.02"]
[Round "-"]
[White "Ginger_GM"]
[Black "Ferrarifan27"]
[Result "1-0"]
[WhiteElo "2666"]
[BlackElo "2146"]
[TimeControl "300"]
[EndTime "8:46:08 PDT"]
[Termination "Ginger_GM won by resignation"]

1. e4 {[%clk 0:04:59.1]} 1... e5 {[%clk 0:04:58.6]} 2. f4 {[%clk 0:04:58.1]}
2... exf4 {[%clk 0:04:57.1]} 3. Bc4 {[%clk 0:04:56.9]} 3... Qh4+ {[%clk
0:04:54.8]} 4. Kf1 {[%clk 0:04:55.9]} 4... Nc6 {[%clk 0:04:45.5]} 5. d4 {[%clk
0:04:54.7]} 5... d6 {[%clk 0:04:40.8]} 6. Nc3 {[%clk 0:04:52.7]} 6... Nf6 {[%clk
0:04:37.7]} 7. Nf3 {[%clk 0:04:47.5]} 7... Qh5 {[%clk 0:04:36.2]} 8. Bxf4 {[%clk
0:04:45.6]} 8... Bg4 {[%clk 0:04:31.6]} 9. Kf2 {[%clk 0:04:29.2]} 9... O-O-O
{[%clk 0:04:23.9]} 10. Bb5 {[%clk 0:04:22.4]} 10... Bxf3 {[%clk 0:04:17.4]} 11.
gxf3 {[%clk 0:04:20.7]} 11... Ne7 {[%clk 0:04:02.5]} 12. h4 {[%clk 0:04:16.2]}
12... Ng6 {[%clk 0:04:00.9]} 13. Bg3 {[%clk 0:04:14.4]} 13... Be7 {[%clk
0:03:58.5]} 14. Be2 {[%clk 0:04:09.3]} 14... Nd7 {[%clk 0:03:54.5]} 15. f4
{[%clk 0:04:07.8]} 15... Qh6 {[%clk 0:03:53.2]} 16. f5 {[%clk 0:03:58.6]} 16...
Nf4 {[%clk 0:03:40.8]} 17. Qc1 {[%clk 0:03:56.8]} 17... Nxe2 {[%clk 0:03:36.8]}
18. Qxh6 {[%clk 0:03:54.8]} 18... gxh6 {[%clk 0:03:34.4]} 19. Nxe2 {[%clk
0:03:53.9]} 19... Nf6 {[%clk 0:03:31.4]} 20. Kf3 {[%clk 0:03:51.8]} 20... Rhg8
{[%clk 0:03:29.3]} 21. c4 {[%clk 0:03:45.3]} 21... Nh5 {[%clk 0:03:26.7]} 22.
Rag1 {[%clk 0:03:40.7]} 22... Nxg3 {[%clk 0:03:24.6]} 23. Rxg3 {[%clk
0:03:39.5]} 23... Rxg3+ {[%clk 0:03:22.8]} 24. Nxg3 {[%clk 0:03:38.8]} 24... Rg8
{[%clk 0:03:22]} 25. Ne2 {[%clk 0:03:31.6]} 25... Bf6 {[%clk 0:03:15.9]} 26. b4
{[%clk 0:03:29.8]} 26... Kd7 {[%clk 0:03:13]} 27. d5 {[%clk 0:03:15.7]} 27... c6
{[%clk 0:03:03.4]} 28. Nf4 {[%clk 0:03:13.5]} 28... Be5 {[%clk 0:02:55.9]} 29.
Rh3 {[%clk 0:03:00.8]} 29... Bxf4 {[%clk 0:02:53.2]} 30. Kxf4 {[%clk 0:02:59.6]}
30... Rg2 {[%clk 0:02:52.2]} 31. Ra3 {[%clk 0:02:58.3]} 31... a6 {[%clk
0:02:49.9]} 32. dxc6+ {[%clk 0:02:53.9]} 32... Kxc6 {[%clk 0:02:48.7]} 33. Ra5
{[%clk 0:02:27.7]} 33... Rc2 {[%clk 0:02:36]} 34. c5 {[%clk 0:02:21.3]} 34...
Rc4 {[%clk 0:02:33.8]} 35. cxd6 {[%clk 0:02:18]} 35... Kxd6 {[%clk 0:02:33]} 36.
Rd5+ {[%clk 0:02:16.5]} 36... Ke7 {[%clk 0:02:31]} 37. a3 {[%clk 0:02:12.8]}
37... Rc3 {[%clk 0:02:29.4]} 38. e5 {[%clk 0:02:11.3]} 38... Rxa3 {[%clk
0:02:17.8]} 39. f6+ {[%clk 0:02:09.7]} 39... Ke8 {[%clk 0:02:15.1]} 40. Rd6
{[%clk 0:02:04.5]} 40... b5 {[%clk 0:02:07.3]} 41. Rb6 {[%clk 0:01:56.6]} 41...
Ra4 {[%clk 0:01:59.9]} 42. Kf5 {[%clk 0:01:53.6]} 42... Rxb4 {[%clk 0:01:51.1]}
43. Rb8+ {[%clk 0:01:50.8]} 43... Kd7 {[%clk 0:01:49.2]} 44. Rf8 {[%clk
0:01:50.5]} 44... Rb1 {[%clk 0:01:47.1]} 45. Rxf7+ {[%clk 0:01:49.6]} 45... Kc6
{[%clk 0:01:46.1]} 46. e6 {[%clk 0:01:46.4]} 46... Rf1+ {[%clk 0:01:44]} 47. Kg4
{[%clk 0:01:45.2]} 47... Kd6 {[%clk 0:01:38.8]} 48. e7 {[%clk 0:01:44]} 48...
Kd7 {[%clk 0:01:29.4]} 49. Rf8 {[%clk 0:01:43]} 49... Re1 {[%clk 0:01:28.2]} 50.
Rd8+ {[%clk 0:01:42.1]} 50... Kc7 {[%clk 0:01:26.4]} 51. e8=Q {[%clk 0:01:40.7]}
51... Rxe8 {[%clk 0:01:25.4]} 52. Rxe8 {[%clk 0:01:40.6]} 1-0

[Event "Live Chess"]
[Site "Chess.com"]
[Date "2024.06.02"]
[Round "-"]
[White "gobbles19"]
[Black "Purple1szed"]
[Result "1-0"]
[WhiteElo "2244"]
[BlackElo "1998"]
[TimeControl "300"]
[EndTime "8:46:19 PDT"]
[Termination "gobbles19 won by resignation"]

1. e4 {[%clk 0:04:58.5]} 1... e5 {[%clk 0:04:59]} 2. d4 {[%clk 0:04:57.1]} 2...
exd4 {[%clk 0:04:58.1]} 3. c3 {[%clk 0:04:56.8]} 3... d5 {[%clk 0:04:57.6]} 4.
exd5 {[%clk 0:04:55.5]} 4... Qxd5 {[%clk 0:04:57.5]} 5. cxd4 {[%clk 0:04:55.2]}
5... Nc6 {[%clk 0:04:56.8]} 6. Nf3 {[%clk 0:04:55]} 6... Bg4 {[%clk 0:04:56.5]}
7. Be2 {[%clk 0:04:54.7]} 7... O-O-O {[%clk 0:04:55.9]} 8. Nc3 {[%clk 0:04:53]}
8... Bb4 {[%clk 0:04:54.4]} 9. O-O {[%clk 0:04:51.3]} 9... Qa5 {[%clk
0:04:53.3]} 10. Be3 {[%clk 0:04:40.3]} 10... Nf6 {[%clk 0:04:51.4]} 11. a3
{[%clk 0:04:38.8]} 11... Bxc3 {[%clk 0:04:44]} 12. bxc3 {[%clk 0:04:38.7]} 12...
Qxc3 {[%clk 0:04:39.8]} 13. Qa4 {[%clk 0:04:24.4]} 13... Qa5 {[%clk 0:04:36.9]}
14. Qb3 {[%clk 0:04:20.4]} 14... Bxf3 {[%clk 0:04:26.9]} 15. Bxf3 {[%clk
0:04:19]} 15... Qb6 {[%clk 0:04:25.1]} 16. Qxf7 {[%clk 0:04:16.8]} 16... Nxd4
{[%clk 0:04:16.6]} 17. Bxd4 {[%clk 0:04:12.2]} 17... Qxd4 {[%clk 0:04:16.5]} 18.
Rfd1 {[%clk 0:04:07.6]} 18... Qe5 {[%clk 0:04:10]} 19. g3 {[%clk 0:03:59.4]}
19... Rd7 {[%clk 0:03:50.3]} 20. Qb3 {[%clk 0:03:55.4]} 20... c6 {[%clk
0:03:44.2]} 21. Rac1 {[%clk 0:03:51]} 21... Rxd1+ {[%clk 0:03:40]} 22. Rxd1
{[%clk 0:03:50.9]} 22... Qc7 {[%clk 0:03:34.6]} 23. Qe6+ {[%clk 0:03:48.2]}
23... Kb8 {[%clk 0:03:28.2]} 24. Rb1 {[%clk 0:03:47.2]} 24... Re8 {[%clk
0:03:24.8]} 25. Qxc6 {[%clk 0:03:44.8]} 25... Qxc6 {[%clk 0:03:23]} 26. Bxc6
{[%clk 0:03:44.7]} 26... Re7 {[%clk 0:03:22.8]} 27. Kg2 {[%clk 0:03:38.7]} 27...
Kc8 {[%clk 0:03:17.5]} 28. Bf3 {[%clk 0:03:37.3]} 28... b6 {[%clk 0:03:11.2]}
29. h4 {[%clk 0:03:32.1]} 29... Rc7 {[%clk 0:03:04.5]} 30. Rb3 {[%clk
0:03:16.8]} 30... h6 {[%clk 0:02:57.8]} 31. Re3 {[%clk 0:03:11]} 31... Kd7
{[%clk 0:02:49.8]} 32. g4 {[%clk 0:03:04.2]} 32... Kd6 {[%clk 0:02:33.9]} 33.
Kg3 {[%clk 0:03:01]} 33... Rc5 {[%clk 0:02:20.6]} 34. Rd3+ {[%clk 0:02:57.7]}
34... Kc7 {[%clk 0:02:17]} 35. Bg2 {[%clk 0:02:48.4]} 35... a5 {[%clk
0:02:10.1]} 36. f4 {[%clk 0:02:46.2]} 36... Nd7 {[%clk 0:02:05.9]} 37. g5 {[%clk
0:02:42.7]} 37... hxg5 {[%clk 0:02:01.7]} 38. fxg5 {[%clk 0:02:39.8]} 38... Ne5
{[%clk 0:02:00]} 39. Re3 {[%clk 0:02:36.6]} 39... Ng6 {[%clk 0:01:55.1]} 40. Be4
{[%clk 0:02:34.2]} 40... Ne5 {[%clk 0:01:51.2]} 41. Kf4 {[%clk 0:02:28.6]} 41...
Kd6 {[%clk 0:01:48]} 42. h5 {[%clk 0:02:25.3]} 42... Nf7 {[%clk 0:01:42.8]} 43.
Rg3 {[%clk 0:02:13.7]} 43... b5 {[%clk 0:01:29.3]} 44. Rd3+ {[%clk 0:02:12.4]}
44... Kc7 {[%clk 0:01:27]} 45. Bd5 {[%clk 0:02:06.7]} 45... Nd6 {[%clk
0:01:24.9]} 46. h6 {[%clk 0:02:04.7]} 46... gxh6 {[%clk 0:01:21.4]} 47. gxh6
{[%clk 0:02:04.6]} 47... Rc1 {[%clk 0:01:20.8]} 48. h7 {[%clk 0:02:02.5]} 48...
Rf1+ {[%clk 0:01:18.7]} 49. Kg5 {[%clk 0:01:55.6]} 49... Rg1+ {[%clk 0:01:16.8]}
50. Kh5 {[%clk 0:01:54.2]} 50... Nf7 {[%clk 0:01:05.7]} 51. Bxf7 {[%clk
0:01:48.4]} 51... Rh1+ {[%clk 0:01:05.3]} 52. Kg6 {[%clk 0:01:47.9]} 52... b4
{[%clk 0:01:05.2]} 53. axb4 {[%clk 0:01:46.1]} 53... axb4 {[%clk 0:01:05.1]} 54.
Rb3 {[%clk 0:01:45.3]} 54... Rh4 {[%clk 0:01:03.8]} 55. Rxb4 {[%clk 0:01:43.6]}
1-0

[Event "Live Chess"]
[Site "Chess.com"]
[Date "2024.06.02"]
[Round "-"]
[White "stevochess11"]
[Black "Trendle"]
[Result "0-1"]
[WhiteElo "1707"]
[BlackElo "2599"]
[TimeControl "300"]
[EndTime "8:46:21 PDT"]
[Termination "Trendle won by resignation"]

1. d4 {[%clk 0:04:57.7]} 1... Nf6 {[%clk 0:04:58]} 2. Nf3 {[%clk 0:04:56.6]}
2... e6 {[%clk 0:04:56.8]} 3. e3 {[%clk 0:04:55.2]} 3... b6 {[%clk 0:04:54.2]}
4. Bd3 {[%clk 0:04:54]} 4... Bb7 {[%clk 0:04:53.3]} 5. Nbd2 {[%clk 0:04:49.9]}
5... c5 {[%clk 0:04:51.6]} 6. c4 {[%clk 0:04:48.7]} 6... Be7 {[%clk 0:04:48.7]}
7. O-O {[%clk 0:04:42.4]} 7... O-O {[%clk 0:04:47.7]} 8. d5 {[%clk 0:04:23.2]}
8... exd5 {[%clk 0:04:45]} 9. cxd5 {[%clk 0:04:22.3]} 9... Nxd5 {[%clk
0:04:39.2]} 10. Ne5 {[%clk 0:04:15.3]} 10... Nc6 {[%clk 0:04:28.2]} 11. Ndf3
{[%clk 0:03:55.6]} 11... Bf6 {[%clk 0:04:26.2]} 12. e4 {[%clk 0:03:42.9]} 12...
Nxe5 {[%clk 0:04:19.2]} 13. exd5 {[%clk 0:03:38.5]} 13... Nxd3 {[%clk
0:04:17.2]} 14. Qxd3 {[%clk 0:03:35.2]} 14... d6 {[%clk 0:04:16.9]} 15. Bf4
{[%clk 0:03:27.5]} 15... Qd7 {[%clk 0:04:13.1]} 16. Bg5 {[%clk 0:03:20]} 16...
Bxg5 {[%clk 0:03:35.3]} 17. Nxg5 {[%clk 0:03:17]} 17... g6 {[%clk 0:03:34.5]}
18. Qh3 {[%clk 0:03:05]} 18... Qxh3 {[%clk 0:03:32.7]} 19. Nxh3 {[%clk
0:03:04.8]} 19... Bxd5 {[%clk 0:03:31.4]} 20. Rad1 {[%clk 0:03:02.9]} 20... Bxa2
{[%clk 0:03:29.8]} 21. Rxd6 {[%clk 0:03:00.4]} 21... Rfd8 {[%clk 0:03:28.4]} 22.
Rfd1 {[%clk 0:02:57.5]} 22... Rxd6 {[%clk 0:03:27.3]} 23. Rxd6 {[%clk
0:02:57.4]} 23... Kf8 {[%clk 0:03:26.5]} 24. Ng5 {[%clk 0:02:54]} 24... Ke7
{[%clk 0:03:23.6]} 25. Rd2 {[%clk 0:02:50.4]} 25... h6 {[%clk 0:03:21]} 26. Re2+
{[%clk 0:02:48.1]} 26... Kf6 {[%clk 0:03:19.1]} 27. Ne4+ {[%clk 0:02:47.3]}
27... Kg7 {[%clk 0:03:18]} 28. Nd6 {[%clk 0:02:45.7]} 28... Be6 {[%clk
0:03:14.8]} 29. h3 {[%clk 0:02:42.8]} 29... Rd8 {[%clk 0:03:12.9]} 30. Nb7
{[%clk 0:02:35.8]} 30... Rd7 {[%clk 0:03:10.9]} 0-1

[Event "Live Chess"]
[Site "Chess.com"]
[Date "2024.06.02"]
[Round "-"]
[White "Dhaydon19"]
[Black "uselessduffer"]
[Result "0-1"]
[WhiteElo "2645"]
[BlackElo "2403"]
[TimeControl "300"]
[EndTime "8:46:32 PDT"]
[Termination "uselessduffer won by resignation"]

1. e4 {[%clk 0:04:58]} 1... g6 {[%clk 0:04:56.6]} 2. d4 {[%clk 0:04:56.9]} 2...
Bg7 {[%clk 0:04:55.9]} 3. Nf3 {[%clk 0:04:56.1]} 3... d6 {[%clk 0:04:55.2]} 4.
Bc4 {[%clk 0:04:54.9]} 4... Nf6 {[%clk 0:04:53.3]} 5. Qe2 {[%clk 0:04:53.2]}
5... O-O {[%clk 0:04:45.9]} 6. h3 {[%clk 0:04:51.1]} 6... Nc6 {[%clk 0:04:33.4]}
7. c3 {[%clk 0:04:49.2]} 7... e5 {[%clk 0:04:32.1]} 8. dxe5 {[%clk 0:04:46.2]}
8... dxe5 {[%clk 0:04:26.2]} 9. Nbd2 {[%clk 0:04:43.5]} 9... Nh5 {[%clk
0:04:24.4]} 10. g3 {[%clk 0:04:42.5]} 10... Qe7 {[%clk 0:04:08.5]} 11. Nf1
{[%clk 0:04:40.1]} 11... Be6 {[%clk 0:03:56.3]} 12. Ne3 {[%clk 0:04:37]} 12...
Rfe8 {[%clk 0:03:17.3]} 13. Bxe6 {[%clk 0:04:34.5]} 13... Qxe6 {[%clk
0:03:17.1]} 14. Nd5 {[%clk 0:04:33.9]} 14... Rac8 {[%clk 0:03:15.4]} 15. Be3
{[%clk 0:04:31.2]} 15... Ne7 {[%clk 0:03:09.4]} 16. Ng5 {[%clk 0:04:25.8]} 16...
Qc6 {[%clk 0:02:44.5]} 17. O-O-O {[%clk 0:04:22.7]} 17... Nxd5 {[%clk
0:02:41.7]} 18. Rxd5 {[%clk 0:04:17.7]} 18... Nf6 {[%clk 0:02:38.8]} 19. Rc5
{[%clk 0:04:15]} 19... Qa4 {[%clk 0:02:25]} 20. Qc4 {[%clk 0:04:11]} 20... Qxc4
{[%clk 0:02:08.7]} 21. Rxc4 {[%clk 0:04:08.6]} 21... c6 {[%clk 0:01:57.7]} 22.
a4 {[%clk 0:04:04.1]} 22... a6 {[%clk 0:01:52.1]} 23. a5 {[%clk 0:03:59.9]}
23... Bf8 {[%clk 0:01:42.6]} 24. Rd1 {[%clk 0:03:49.2]} 24... Rcd8 {[%clk
0:01:39.8]} 25. Rxd8 {[%clk 0:03:46.6]} 25... Rxd8 {[%clk 0:01:39.4]} 26. Nf3
{[%clk 0:03:46.2]} 26... Nd7 {[%clk 0:01:34.9]} 27. g4 {[%clk 0:03:42.7]} 27...
f6 {[%clk 0:01:33.6]} 28. Kc2 {[%clk 0:03:36.9]} 28... Kf7 {[%clk 0:01:32.8]}
29. Nd2 {[%clk 0:03:32.4]} 29... Ke6 {[%clk 0:01:31.2]} 30. Ra4 {[%clk
0:03:29.4]} 30... Nc5 {[%clk 0:01:28]} 31. Rb4 {[%clk 0:03:25.9]} 31... Rd7
{[%clk 0:01:25.2]} 32. Rb6 {[%clk 0:03:10.6]} 32... Na4 {[%clk 0:01:22.5]} 33.
Rb3 {[%clk 0:03:08.6]} 33... Nc5 {[%clk 0:01:21.1]} 34. Ra3 {[%clk 0:03:04.8]}
34... Nd3 {[%clk 0:01:00.8]} 35. Ra1 {[%clk 0:03:01.8]} 35... Bc5 {[%clk
0:00:57.3]} 36. Bxc5 {[%clk 0:02:55.5]} 36... Nxc5 {[%clk 0:00:57.2]} 37. f3
{[%clk 0:02:48.7]} 37... Rxd2+ {[%clk 0:00:54.8]} 38. Kxd2 {[%clk 0:02:42.8]}
38... Nb3+ {[%clk 0:00:53.9]} 39. Kd3 {[%clk 0:02:40.3]} 39... Nxa1 {[%clk
0:00:53.8]} 40. b4 {[%clk 0:02:38.4]} 40... Kd6 {[%clk 0:00:52]} 41. c4 {[%clk
0:02:36.1]} 41... c5 {[%clk 0:00:48.9]} 42. b5 {[%clk 0:02:34.7]} 42... Nb3
{[%clk 0:00:47.8]} 43. bxa6 {[%clk 0:02:27.9]} 43... bxa6 {[%clk 0:00:46.6]} 44.
f4 {[%clk 0:02:25.7]} 44... exf4 {[%clk 0:00:44.9]} 0-1

[Event "Live Chess"]
[Site "Chess.com"]
[Date "2024.06.02"]
[Round "-"]
[White "Vladyslav2008"]
[Black "E2E4colchester"]
[Result "1-0"]
[WhiteElo "2259"]
[BlackElo "1006"]
[TimeControl "300"]
[EndTime "8:46:32 PDT"]
[Termination "Vladyslav2008 won by checkmate"]

1. e4 {[%clk 0:04:58.9]} 1... c5 {[%clk 0:04:57]} 2. Nf3 {[%clk 0:04:57.6]} 2...
Nc6 {[%clk 0:04:56.1]} 3. d4 {[%clk 0:04:55.4]} 3... cxd4 {[%clk 0:04:54.8]} 4.
Nxd4 {[%clk 0:04:54.3]} 4... Nxd4 {[%clk 0:04:54]} 5. Qxd4 {[%clk 0:04:53.1]}
5... Nf6 {[%clk 0:04:51.4]} 6. e5 {[%clk 0:04:48.1]} 6... Nh5 {[%clk 0:04:43.6]}
7. g4 {[%clk 0:04:43.7]} 7... e6 {[%clk 0:04:27.8]} 8. gxh5 {[%clk 0:04:41.1]}
8... d5 {[%clk 0:04:27]} 9. exd6 {[%clk 0:04:35.7]} 9... Bxd6 {[%clk 0:04:24.5]}
10. Qxg7 {[%clk 0:04:34.5]} 10... Rg8 {[%clk 0:04:18.4]} 11. Qxg8+ {[%clk
0:04:25.5]} 11... Kd7 {[%clk 0:04:16.1]} 12. Bb5+ {[%clk 0:04:24.3]} 12... Kc7
{[%clk 0:04:13.8]} 13. Qxd8+ {[%clk 0:04:23.1]} 13... Kb8 {[%clk 0:04:07]} 14.
Bg5 {[%clk 0:04:23]} 14... Be7 {[%clk 0:04:00.7]} 15. Bxe7 {[%clk 0:04:19.3]}
15... a6 {[%clk 0:03:58.1]} 16. Bd6+ {[%clk 0:04:16.9]} 16... Ka7 {[%clk
0:03:55.3]} 17. Bc5+ {[%clk 0:04:16.5]} 17... b6 {[%clk 0:03:53.9]} 18. Qxb6#
{[%clk 0:04:15.7]} 1-0

[Event "Live Chess"]
[Site "Chess.com"]
[Date "2024.06.02"]
[Round "-"]
[White "CarmelJane"]
[Black "santhoshrlokesh"]
[Result "1-0"]
[WhiteElo "2043"]
[BlackElo "1508"]
[TimeControl "300"]
[EndTime "8:46:38 PDT"]
[Termination "CarmelJane won by resignation"]

1. b3 {[%clk 0:04:56.5]} 1... d5 {[%clk 0:04:58.9]} 2. Bb2 {[%clk 0:04:55.7]}
2... Bf5 {[%clk 0:04:58.4]} 3. f4 {[%clk 0:04:52.9]} 3... e6 {[%clk 0:04:57.6]}
4. Nf3 {[%clk 0:04:52]} 4... Bc5 {[%clk 0:04:57]} 5. e3 {[%clk 0:04:48.5]} 5...
Nc6 {[%clk 0:04:56.1]} 6. Be2 {[%clk 0:04:47.9]} 6... Nf6 {[%clk 0:04:50.8]} 7.
O-O {[%clk 0:04:46.2]} 7... h5 {[%clk 0:04:46.4]} 8. Ne5 {[%clk 0:04:41]} 8...
Nxe5 {[%clk 0:04:44.2]} 9. fxe5 {[%clk 0:04:39.4]} 9... Ne4 {[%clk 0:04:40.5]}
10. Nc3 {[%clk 0:04:26.8]} 10... h4 {[%clk 0:04:37.7]} 11. Nxe4 {[%clk
0:04:24.7]} 11... Bxe4 {[%clk 0:04:35.3]} 12. d4 {[%clk 0:04:18.6]} 12... Bb6
{[%clk 0:04:31.3]} 13. Bf3 {[%clk 0:04:17.6]} 13... Qe7 {[%clk 0:04:27.5]} 14.
Bxe4 {[%clk 0:04:16.4]} 14... dxe4 {[%clk 0:04:24.2]} 15. Qg4 {[%clk 0:04:14.3]}
15... f5 {[%clk 0:04:16]} 16. exf6 {[%clk 0:04:12.2]} 16... gxf6 {[%clk
0:04:14.5]} 17. Qxe4 {[%clk 0:04:10.4]} 17... O-O-O {[%clk 0:04:07.5]} 18. c4
{[%clk 0:04:07.6]} 18... c6 {[%clk 0:04:02.3]} 19. d5 {[%clk 0:03:59.9]} 19...
f5 {[%clk 0:03:47.2]} 20. Qxe6+ {[%clk 0:03:57.9]} 20... Qxe6 {[%clk 0:03:43.3]}
21. dxe6 {[%clk 0:03:57.8]} 21... Rhe8 {[%clk 0:03:39.5]} 22. Rxf5 {[%clk
0:03:52.2]} 22... Rxe6 {[%clk 0:03:38.5]} 23. Bd4 {[%clk 0:03:44.5]} 23... Bxd4
{[%clk 0:03:30.7]} 24. exd4 {[%clk 0:03:44.4]} 24... Rxd4 {[%clk 0:03:29]} 25.
Rf2 {[%clk 0:03:42]} 25... h3 {[%clk 0:03:21.7]} 26. gxh3 {[%clk 0:03:36.7]}
26... Rg6+ {[%clk 0:03:18.3]} 27. Rg2 {[%clk 0:03:31.9]} 27... Rxg2+ {[%clk
0:03:12.3]} 28. Kxg2 {[%clk 0:03:30.7]} 28... Kc7 {[%clk 0:03:09.3]} 29. Rf1
{[%clk 0:03:27.8]} 29... Rd2+ {[%clk 0:02:59.1]} 30. Rf2 {[%clk 0:03:25.7]}
30... Rxf2+ {[%clk 0:02:55.1]} 31. Kxf2 {[%clk 0:03:25.6]} 31... Kd7 {[%clk
0:02:53.9]} 32. Ke3 {[%clk 0:03:23.4]} 32... Ke6 {[%clk 0:02:53.2]} 33. Ke4
{[%clk 0:03:21.7]} 33... b6 {[%clk 0:02:49.5]} 34. b4 {[%clk 0:03:20.5]} 34...
a6 {[%clk 0:02:47.8]} 35. a3 {[%clk 0:03:18.2]} 35... a5 {[%clk 0:02:46.5]} 36.
bxa5 {[%clk 0:03:16.6]} 36... bxa5 {[%clk 0:02:45.5]} 37. c5 {[%clk 0:03:15.9]}
37... a4 {[%clk 0:02:42.3]} 38. h4 {[%clk 0:03:15.5]} 38... Kf6 {[%clk
0:02:34.2]} 39. h5 {[%clk 0:03:14.5]} 39... Kg5 {[%clk 0:02:27.9]} 40. Ke5
{[%clk 0:03:14.4]} 40... Kxh5 {[%clk 0:02:27.2]} 41. Kd6 {[%clk 0:03:14]} 41...
Kh4 {[%clk 0:02:26.5]} 42. Kxc6 {[%clk 0:03:13.9]} 42... Kh3 {[%clk 0:02:25.9]}
43. Kb5 {[%clk 0:03:13.6]} 43... Kxh2 {[%clk 0:02:25.7]} 44. c6 {[%clk
0:03:13.3]} 44... Kg3 {[%clk 0:02:25.4]} 45. c7 {[%clk 0:03:13.2]} 45... Kf4
{[%clk 0:02:24.7]} 46. c8=Q {[%clk 0:03:13.1]} 46... Ke5 {[%clk 0:02:24.3]} 47.
Qc4 {[%clk 0:03:11.4]} 47... Kd6 {[%clk 0:02:24.2]} 48. Qxa4 {[%clk 0:03:11.2]}
48... Kc7 {[%clk 0:02:22.6]} 49. Qc4+ {[%clk 0:03:10.5]} 49... Kb7 {[%clk
0:02:20.5]} 50. Qf7+ {[%clk 0:03:09.6]} 50... Ka8 {[%clk 0:02:18.4]} 51. Kc6
{[%clk 0:03:08.5]} 1-0

[Event "Live Chess"]
[Site "Chess.com"]
[Date "2024.06.02"]
[Round "-"]
[White "NeilDruggan73"]
[Black "CheDA13"]
[Result "1/2-1/2"]
[WhiteElo "1712"]
[BlackElo "1510"]
[TimeControl "300"]
[EndTime "8:46:44 PDT"]
[Termination "Game drawn by repetition"]

1. d4 {[%clk 0:04:56.7]} 1... Nf6 {[%clk 0:04:58.8]} 2. Bg5 {[%clk 0:04:54.2]}
2... d5 {[%clk 0:04:56.2]} 3. Bxf6 {[%clk 0:04:52.5]} 3... gxf6 {[%clk
0:04:56.1]} 4. e3 {[%clk 0:04:51.1]} 4... Bf5 {[%clk 0:04:50.5]} 5. Nf3 {[%clk
0:04:44.5]} 5... e6 {[%clk 0:04:46.9]} 6. b3 {[%clk 0:04:42.9]} 6... c6 {[%clk
0:04:44]} 7. Bd3 {[%clk 0:04:40.4]} 7... Bg6 {[%clk 0:04:38.9]} 8. O-O {[%clk
0:04:29.9]} 8... Nd7 {[%clk 0:04:36]} 9. Nh4 {[%clk 0:04:26.5]} 9... Bxd3 {[%clk
0:04:31]} 10. Qxd3 {[%clk 0:04:18]} 10... Bd6 {[%clk 0:04:22.6]} 11. c4 {[%clk
0:04:13.2]} 11... Rc8 {[%clk 0:03:35.9]} 12. Nd2 {[%clk 0:04:03.8]} 12... O-O
{[%clk 0:03:21.3]} 13. f4 {[%clk 0:03:58.1]} 13... Kh8 {[%clk 0:03:19.4]} 14.
Rf3 {[%clk 0:03:52]} 14... f5 {[%clk 0:03:15.3]} 15. Rh3 {[%clk 0:03:45.4]}
15... f6 {[%clk 0:03:11.9]} 16. Rf1 {[%clk 0:03:35.8]} 16... Qe7 {[%clk
0:03:08.9]} 17. Rff3 {[%clk 0:03:33.8]} 17... Rg8 {[%clk 0:03:08.3]} 18. c5
{[%clk 0:03:24.1]} 18... Bc7 {[%clk 0:03:06.2]} 19. b4 {[%clk 0:03:18.4]} 19...
Rg7 {[%clk 0:02:57.8]} 20. Nf1 {[%clk 0:03:12.6]} 20... Rcg8 {[%clk 0:02:56.9]}
21. Ng3 {[%clk 0:03:11.4]} 21... Qf7 {[%clk 0:02:47.6]} 22. b5 {[%clk 0:02:51]}
22... Rb8 {[%clk 0:02:43.9]} 23. a4 {[%clk 0:02:48.2]} 23... Nf8 {[%clk
0:02:30.9]} 24. Ne2 {[%clk 0:02:06.1]} 24... Ng6 {[%clk 0:02:27.3]} 25. Nxg6+
{[%clk 0:01:56.1]} 25... Rxg6 {[%clk 0:02:26.6]} 26. Ng3 {[%clk 0:01:54.6]}
26... Qe7 {[%clk 0:02:15.9]} 27. Qe2 {[%clk 0:01:53.2]} 27... Rbg8 {[%clk
0:02:14.4]} 28. Rh5 {[%clk 0:01:44.6]} 28... Rg4 {[%clk 0:02:07.8]} 29. Rh6
{[%clk 0:01:33.8]} 29... R4g6 {[%clk 0:02:06]} 30. Rxg6 {[%clk 0:01:30]} 30...
Rxg6 {[%clk 0:02:05.9]} 31. Nh5 {[%clk 0:01:27.9]} 31... Qf7 {[%clk 0:01:58.6]}
32. Rh3 {[%clk 0:01:26.6]} 32... Bd8 {[%clk 0:01:53.9]} 33. Ng3 {[%clk
0:01:25.1]} 33... Rg7 {[%clk 0:01:48.3]} 34. bxc6 {[%clk 0:01:24]} 34... bxc6
{[%clk 0:01:47.1]} 35. Qa6 {[%clk 0:01:21.7]} 35... Qb7 {[%clk 0:01:40.7]} 36.
Qe2 {[%clk 0:01:12.9]} 36... Qf7 {[%clk 0:01:34.6]} 37. Qa6 {[%clk 0:01:01.6]}
37... Qb7 {[%clk 0:01:32.6]} 38. Qe2 {[%clk 0:00:58.6]} 38... Qf7 {[%clk
0:01:31.7]} 1/2-1/2

[Event "Live Chess"]
[Site "Chess.com"]
[Date "2024.06.02"]
[Round "-"]
[White "LL220284LL"]
[Black "halfberg"]
[Result "1-0"]
[WhiteElo "2472"]
[BlackElo "1892"]
[TimeControl "300"]
[EndTime "8:47:15 PDT"]
[Termination "LL220284LL won by resignation"]

1. g3 {[%clk 0:04:57.4]} 1... c6 {[%clk 0:04:54.5]} 2. Bg2 {[%clk 0:04:57.3]}
2... d5 {[%clk 0:04:52.8]} 3. b3 {[%clk 0:04:40]} 3... e6 {[%clk 0:04:48.8]} 4.
Bb2 {[%clk 0:04:34.3]} 4... Nf6 {[%clk 0:04:48.3]} 5. Nf3 {[%clk 0:04:29.6]}
5... Be7 {[%clk 0:04:47.3]} 6. O-O {[%clk 0:04:26.1]} 6... O-O {[%clk
0:04:45.7]} 7. d3 {[%clk 0:04:24.5]} 7... Nbd7 {[%clk 0:04:42.8]} 8. Nbd2 {[%clk
0:04:09.3]} 8... Re8 {[%clk 0:04:24.7]} 9. e4 {[%clk 0:04:00.6]} 9... dxe4
{[%clk 0:04:18.1]} 10. dxe4 {[%clk 0:04:00.5]} 10... Nf8 {[%clk 0:04:16.9]} 11.
Qe2 {[%clk 0:03:59.1]} 11... Ng6 {[%clk 0:04:12.6]} 12. Rfd1 {[%clk 0:03:56.1]}
12... Qc7 {[%clk 0:04:08.5]} 13. h4 {[%clk 0:03:53.4]} 13... h5 {[%clk
0:04:01.3]} 14. Ng5 {[%clk 0:03:50.2]} 14... e5 {[%clk 0:03:49.9]} 15. Nc4
{[%clk 0:03:46.2]} 15... b6 {[%clk 0:03:27.5]} 16. Ne3 {[%clk 0:03:44.2]} 16...
Ng4 {[%clk 0:03:07.3]} 17. Nf5 {[%clk 0:03:39.9]} 17... Bxg5 {[%clk 0:02:56.8]}
18. hxg5 {[%clk 0:03:38.3]} 18... Bxf5 {[%clk 0:02:35.3]} 19. exf5 {[%clk
0:03:36.8]} 19... Ne7 {[%clk 0:02:31.4]} 20. f3 {[%clk 0:03:32.3]} 20... Nxf5
{[%clk 0:02:28.1]} 21. fxg4 {[%clk 0:03:30.5]} 21... Nxg3 {[%clk 0:02:26.6]} 22.
Qe3 {[%clk 0:03:12.4]} 22... h4 {[%clk 0:02:22.7]} 23. g6 {[%clk 0:03:05.2]}
23... f6 {[%clk 0:02:16.3]} 24. Rd2 {[%clk 0:02:56]} 24... Rad8 {[%clk
0:02:12.9]} 25. Rad1 {[%clk 0:02:55.4]} 25... Rxd2 {[%clk 0:02:10.3]} 26. Rxd2
{[%clk 0:02:55.3]} 26... Rd8 {[%clk 0:02:05.5]} 27. g5 {[%clk 0:02:42.5]} 27...
Rxd2 {[%clk 0:02:00.3]} 28. Qxd2 {[%clk 0:02:41.1]} 28... Qe7 {[%clk 0:01:32.3]}
29. Qd3 {[%clk 0:02:31.9]} 29... f5 {[%clk 0:01:21.5]} 30. Qc4+ {[%clk
0:02:29.3]} 30... Kh8 {[%clk 0:01:17.2]} 31. Qxc6 {[%clk 0:02:27.9]} 31... Qd8
{[%clk 0:00:53.2]} 32. Bxe5 {[%clk 0:02:19.1]} 32... Qd1+ {[%clk 0:00:45.4]} 33.
Kh2 {[%clk 0:02:17.6]} 1-0